bitfinex-derivatives/quotes_ETHF0:USTF0_20220108
["timestamp","ask_amount","ask_price","bid_price","bid_amount"]
[1641676849639,2.00479,3045.4,3044.8,2.173357]
[1641676850444,2.50479,3045.8,3044.9,1.5]
[1641676850643,2.50479,3045.8,3045.3,1.64134347]
[1641676850842,2.50479,3045.8,3045.4,0.66197]
[1641676851042,2.50479,3045.8,3045.5,0.722867]
[1641676851243,2.50479,3045.8,3045.5,2.096737]
[1641676851443,2.50479,3045.8,3045.5,2.014657]
[1641676852043,1.5,3045.6,3045.5,0.7119]
[1641676852243,0.6585,3045.6,3044.4,0.08208]
[1641676852442,0.6585,3045.6,3044.3,1.64190941]
[1641676852842,0.6585,3045.6,3044.8,1.5]
[1641676853045,2.50479,3045.8,3045.0,14.17]
[1641676853246,2.50479,3045.8,3045.2,15.8114216]
[1641676853445,2.50479,3045.8,3045.6,15.81121686]
[1641676853645,0.5,3045.8,3045.6,16.76551686]
[1641676854044,0.5,3045.8,3045.7,0.66197]
[1641676854245,0.5,3045.8,3045.7,0.74405]
[1641676854445,0.5,3045.8,3045.7,14.91405]
[1641676855247,0.5,3045.8,3045.7,15.554837]
[1641676855846,2.00479,3046.9,3045.7,25.054837]
[1641676856048,0.4873,3047.8,3046.8,15.81057066]
[1641676856249,0.4873,3047.8,3046.8,2.26917066]
[1641676856447,1.5,3047.9,3046.9,0.08203]
[1641676856647,1.5,3047.9,3046.8,1.64057066]
[1641676856946,1.5,3047.5,3046.3,1.64084254]
[1641676857146,1.64084254,3048.0,3046.3,1.64084254]
[1641676857346,34.7725,3048.1,3046.4,14.25204]
[1641676857548,36.41327523,3048.1,3046.4,1.72281523]
[1641676857748,2.00479,3047.3,3046.6,2.00479]
[1641676857951,2.00479,3047.3,3046.7,1.302757]
[1641676858151,2.00479,3047.6,3046.7,2.091157]
[1641676858751,2.00479,3047.6,3046.7,1.45037]
[1641676858953,1.5,3047.2,3046.7,0.7884]
[1641676859252,1.5,3047.0,3045.9,1.72306026]
[1641676859450,1.24047019,3047.1,3045.6,2.00479]
[1641676859952,1.24047019,3047.1,3046.2,2.00479]
[1641676859953,2.00479,3046.9,3046.2,2.00479]
[1641676860154,2.00479,3047.6,3046.4,1.64077523]
[1641676860353,1.5,3047.5,3046.3,0.722837]
[1641676860553,1.5,3047.2,3046.3,0.640787]
[1641676860857,1.5,3047.2,3046.2,2.00479]
[1641676861453,1.4021951,3047.1,3046.2,2.00479]
[1641676861854,2.00479,3046.9,3046.2,2.00479]
[1641676862152,1.5,3046.7,3044.7,0.08205]
[1641676862353,18.4039,3046.7,3044.7,0.08205]
[1641676862554,18.4039,3046.7,3044.6,14.25208]
[1641676862954,0.5,3045.7,3045.0,1.6415186]
[1641676863153,0.5,3045.7,3045.1,1.302757]
[1641676863458,0.5,3045.7,3045.1,14.17]
[1641676863654,0.5,3045.7,3045.3,14.17]
[1641676863857,0.5,3045.7,3045.4,0.08208]
[1641676864456,0.5,3045.7,3045.5,0.66197]
[1641676865058,0.5,3045.7,3045.5,14.83197]
[1641676865260,0.5,3045.7,3045.6,14.810787]
[1641676865463,0.5,3045.7,3045.6,15.522267]
[1641676865860,2.00479,3047.1,3045.6,19.027057]
[1641676866164,5.8961,3048.6,3045.6,19.027057]
[1641676866165,1.5,3048.0,3046.1,14.17]
[1641676866461,1.5,3048.0,3046.2,0.08204]
[1641676866660,2.08178499,3048.3,3046.2,0.08204]
[1641676866661,1.5,3047.4,3046.2,0.08204]
[1641676866861,1.5,3047.4,3045.8,0.08205]
[1641676867061,1.5,3047.4,3045.6,2.00479]
[1641676867062,1.5,3047.4,3046.0,1.64099333]
[1641676867268,1.5,3047.4,3046.1,0.08205]
[1641676867469,1.5,3047.4,3046.0,1.64099333]
[1641676867670,3.14114145,3047.4,3045.8,0.08205]
[1641676867970,1.5,3046.6,3045.8,0.08205]
[1641676868170,0.661969,3046.5,3045.6,2.00479]
[1641676868370,17.9492,3047.0,3045.6,2.00479]
[1641676868571,17.9492,3047.0,3045.7,0.08205]
[1641676868774,17.9492,3047.0,3045.7,14.25205]
[1641676869471,1.5,3046.8,3045.7,0.08205]
[1641676869674,1.5,3046.5,3045.7,1.72319953]
[1641676869871,0.661969,3046.4,3046.3,2.00479]
[1641676870071,0.661969,3046.4,3045.6,2.00479]
[1641676870472,0.661969,3046.4,3045.7,0.66197]
[1641676870671,35.1717,3047.0,3045.7,2.143757]
[1641676870874,16.5301,3047.0,3045.9,1.5]
[1641676871073,17.9593,3047.5,3046.5,1.5]
[1641676871275,34.6797,3048.3,3047.1,1.64040918]
[1641676871478,2.08178499,3048.0,3047.2,0.66197]
[1641676871775,2.08178499,3048.0,3047.5,4.00958]
[1641676871972,2.08178499,3048.0,3047.6,0.66197]
[1641676872181,2.08178499,3048.0,3047.9,1.63997606]
[1641676872373,1.1435296,3048.3,3047.9,16.59937606]
[1641676872575,3.471912,3048.5,3048.3,14.17]
[1641676872771,3.471912,3048.5,3048.4,14.25201]
[1641676872973,3.471912,3048.5,3048.4,14.91398]
[1641676873175,3.8191032,3048.7,3048.4,14.91398]
[1641676873374,2.07730423,3049.5,3048.4,14.91398]
[1641676873778,2.07730423,3049.5,3049.4,2.00479]
[1641676873985,2.07730423,3049.5,3049.4,2.92559]
[1641676874376,2.07730423,3049.5,3049.4,6.0646575]
[1641676874576,2.07730423,3049.5,3049.4,18.398347]
[1641676874974,3.471912,3050.0,3049.4,18.398347]
[1641676875176,0.5,3049.5,3049.4,18.398347]
[1641676875378,0.5,3049.5,3049.4,19.980317]
[1641676875777,0.5,3049.5,3049.4,18.480317]
[1641676875976,0.5,3049.5,3049.4,3.00756]
[1641676876176,0.5,3049.5,3049.4,2.00479]
[1641676876975,0.5,3049.5,3049.1,2.00479]
[1641676877375,0.661969,3049.4,3049.1,2.00479]
[1641676877576,1.388669,3049.4,3049.1,2.00479]
[1641676878175,1.388669,3049.4,3048.7,2.00479]
[1641676878375,1.5,3049.2,3048.2,31.82488891]
[1641676878579,1.5,3049.2,3048.2,30.18507421]
[1641676878776,1.5,3049.0,3047.8,1.64001909]
[1641676878978,1.18372134,3049.1,3047.8,1.64001909]
[1641676879176,1.18372134,3049.1,3047.5,1.64001909]
[1641676879177,1.18372134,3049.1,3047.5,0.082]
[1641676879379,1.18372134,3049.1,3047.4,1.64021277]
[1641676879780,2.00479,3048.3,3047.6,2.00479]
[1641676879981,0.934,3048.3,3047.7,1.302757]
[1641676880181,0.934,3048.3,3047.8,1.63998681]
[1641676880381,0.934,3048.3,3047.8,2.30195681]
[1641676880582,1.595969,3048.3,3047.8,0.66197]
[1641676880984,1.45734286,3048.8,3047.8,0.66197]
[1641676881181,2.1924,3049.3,3047.9,14.17]
[1641676881382,2.1924,3049.3,3047.8,1.64001909]
[1641676881584,2.1924,3049.3,3047.7,0.722797]
[1641676881782,2.00479,3049.1,3048.4,2.00479]
[1641676881983,1.5,3048.6,3048.4,2.00479]
[1641676882383,0.661969,3048.5,3047.6,2.00479]
[1641676883385,0.661969,3048.5,3047.6,16.17479]
[1641676883585,0.661969,3048.5,3047.7,0.08201]
[1641676883787,0.661969,3048.5,3048.4,2.00479]
[1641676884488,0.661969,3048.5,3047.7,1.64004061]
[1641676884686,0.661969,3048.5,3047.1,0.082]
[1641676884687,1.467269,3048.5,3046.5,0.08201]
[1641676884888,1.5,3048.2,3046.5,0.08201]
[1641676885088,1.5,3048.2,3046.1,0.08203]
[1641676885487,0.8053,3048.5,3046.1,0.08203]
[1641676885488,16.3898,3048.1,3046.5,14.17]
[1641676885687,0.8053,3048.5,3046.6,0.08203]
[1641676885887,2.00479,3047.3,3046.5,2.08682]
[1641676886087,2.00479,3047.3,3046.6,1.302757]
[1641676886287,2.666759,3047.3,3046.6,1.302757]
[1641676886487,2.666759,3047.3,3046.6,0.66197]
[1641676886689,2.666759,3047.3,3046.2,2.00479]
[1641676886890,3.289659,3047.3,3045.6,0.08205]
[1641676887087,3.289659,3047.3,3046.0,1.64082638]
[1641676887286,3.289659,3047.3,3045.6,0.08205]
[1641676887487,3.289659,3047.3,3045.9,1.5]
[1641676887688,2.62769,3047.3,3046.4,14.17]
[1641676887887,2.00479,3047.3,3046.7,16.17479]
[1641676888090,2.00479,3047.3,3046.8,1.302757]
[1641676889190,2.00479,3047.3,3046.8,2.165157]
[1641676889395,2.00479,3047.3,3046.8,3.80569267]
[1641676889593,2.00479,3047.3,3046.8,2.165157]
[1641676890194,2.00479,3047.3,3046.9,1.64050068]
[1641676890394,2.00479,3047.6,3047.0,0.66197]
[1641676890997,0.661969,3047.5,3046.8,1.64055182]
[1641676891196,0.661969,3047.5,3046.4,2.00479]
[1641676891999,2.00479,3046.9,3046.4,2.00479]
[1641676892196,2.00479,3046.9,3046.5,2.94349185]
[1641676892599,2.00479,3046.9,3046.5,17.11349185]
[1641676892799,2.00479,3046.9,3046.5,1.302757]
[1641676892996,2.00479,3046.9,3046.4,2.00479]
[1641676893497,2.00479,3046.9,3046.4,2.66676]
[1641676893699,2.00479,3046.9,3046.4,2.00479]
[1641676893998,2.00479,3046.9,3046.4,2.66676]
[1641676894197,0.661969,3046.8,3046.4,2.00479]
[1641676895199,0.5,3046.5,3046.4,2.00479]
[1641676896199,0.5,3046.5,3046.4,2.645577]
[1641676897305,0.5,3046.5,3046.4,18.4561961]
[1641676897900,0.5,3046.5,3046.4,16.815577]
[1641676898300,1.5,3047.8,3046.7,0.31228311]
[1641676898501,2.00479,3047.9,3046.7,1.15208311]
[1641676899100,3.50479,3047.6,3046.7,1.15208311]
[1641676899703,2.00479,3047.6,3046.7,0.31228311]
[1641676899900,2.00479,3047.0,3046.7,0.31228311]
[1641676900102,0.661969,3046.9,3045.9,1.64102833]
[1641676900501,0.661969,3046.9,3045.5,3.03074504]
[1641676900700,0.661969,3046.9,3045.7,1.64114414]
[1641676901101,0.661969,3046.9,3045.5,1.38251765]
[1641676901300,0.661969,3046.9,3045.7,1.64114414]
[1641676901901,2.00479,3046.4,3045.7,1.64114414]
[1641676902102,0.661969,3046.3,3045.3,1.64133808]
[1641676903004,2.161969,3046.3,3045.3,1.64133808]
[1641676903206,0.661969,3046.3,3045.3,1.64133808]
[1641676903807,0.661969,3046.3,3045.0,14.17]
[1641676904005,0.661969,3046.3,3045.1,0.08208]
[1641676904206,0.661969,3046.3,3045.2,14.17]
[1641676904407,2.00479,3046.4,3045.3,0.08208]
[1641676904909,2.00479,3046.4,3045.6,1.64118185]
[1641676905106,0.661969,3046.3,3045.3,15.89343155]
[1641676905306,0.661969,3046.3,3045.3,1.72343155]
[1641676905507,0.5,3045.4,3045.3,14.25208]
[1641676905706,0.5,3045.4,3045.3,1.384837]
[1641676905906,0.5,3045.4,3045.3,3.389627]
[1641676906106,2.00479,3046.4,3045.3,3.389627]
[1641676906306,2.00479,3046.4,3045.4,14.17]
[1641676906508,2.00479,3046.6,3045.7,14.17]
[1641676906706,2.00479,3046.6,3045.8,0.08207]
[1641676906906,2.00479,3046.6,3046.0,14.17]
[1641676907106,2.00479,3046.6,3046.0,15.0873]
[1641676907306,2.00479,3046.6,3046.5,14.17]
[1641676907807,2.00479,3046.6,3046.5,14.810787]
[1641676908007,2.00479,3046.6,3046.5,1.302757]
[1641676908210,2.00479,3046.6,3046.1,2.08684]
[1641676908437,0.661969,3046.8,3046.2,2.30285023]
[1641676908709,0.661969,3046.8,3046.2,0.66197]
[1641676909711,2.00479,3047.1,3046.3,0.640787]
[1641676909908,2.00479,3047.1,3046.5,2.00479]
[1641676910311,2.666759,3047.1,3046.5,2.00479]
[1641676910712,2.666759,3047.1,3046.5,2.66676]
[1641676911512,2.00479,3047.1,3046.5,17.55636]
[1641676913012,0.661969,3047.1,3046.6,1.64064333]
[1641676913312,0.661969,3047.1,3046.5,3.38636]
[1641676913313,0.661969,3047.1,3046.5,2.00479]
[1641676914217,0.661969,3047.1,3046.5,2.66676]
[1641676914419,0.661969,3047.1,3046.5,3.307547]
[1641676915421,2.00479,3047.5,3046.5,3.307547]
[1641676915619,2.00479,3047.5,3046.5,4.237247]
[1641676916020,1.5,3047.4,3046.5,4.237247]
[1641676916519,1.5,3047.4,3046.5,3.575277]
[1641676916720,1.3309628,3047.3,3046.5,2.00479]
[1641676916921,0.661969,3047.2,3046.5,2.00479]
[1641676918026,2.00479,3047.0,3046.6,1.302757]
[1641676918224,2.00479,3047.0,3046.6,1.964057]
[1641676918826,2.00479,3047.0,3046.6,0.6613]
[1641676919026,2.00479,3047.0,3046.6,15.49327]
[1641676919227,2.00479,3047.5,3046.6,15.49327]
[1641676919426,2.00479,3047.5,3046.9,14.17]
[1641676919626,2.00479,3047.5,3047.3,1.64030424]
[1641676919826,2.00479,3047.5,3047.3,2.29250424]
[1641676920027,2.00479,3047.5,3047.4,0.640787]
[1641676920228,2.00479,3047.5,3047.4,2.94290251]
[1641676921429,2.00479,3047.5,3047.4,3.02493251]
[1641676921629,2.00479,3048.1,3047.4,3.02493251]
[1641676921829,0.661969,3048.0,3047.4,2.94290251]
[1641676922528,2.00479,3048.4,3048.0,14.17]
[1641676922728,18.0584,3049.2,3048.1,1.384767]
[1641676922928,2.07058249,3049.3,3048.1,1.384767]
[1641676923331,2.07058249,3049.3,3048.1,0.08201]
[1641676923533,2.07058249,3049.3,3047.9,1.63994378]
[1641676923932,2.00479,3048.8,3048.1,2.00479]
[1641676924133,0.661969,3048.7,3048.1,2.00479]
[1641676924932,2.00479,3048.8,3048.2,0.640787]
[1641676925136,1.5,3049.7,3048.7,1.63937382]
[1641676925334,19.83258249,3049.8,3048.7,1.63937382]
[1641676925534,1.5,3049.4,3048.7,1.63937382]
[1641676925735,0.661969,3049.3,3048.3,0.082]
[1641676926335,2.19815855,3049.5,3048.9,1.6394222]
[1641676926535,2.19815855,3049.5,3049.0,0.66197]
[1641676926938,2.86012755,3049.5,3049.0,0.66197]
[1641676927137,2.666759,3049.5,3049.0,0.66197]
[1641676927538,2.666759,3049.5,3049.0,1.302757]
[1641676927539,2.00479,3049.5,3049.0,1.302757]
[1641676927836,2.00479,3049.5,3049.0,15.472757]
[1641676928440,2.00479,3049.5,3049.1,0.08197]
[1641676928638,0.661969,3049.5,3049.1,0.08197]
[1641676928937,0.661969,3049.5,3048.9,2.08676]
[1641676929138,0.05,3049.9,3049.0,0.66197]
[1641676929940,2.05479,3049.9,3049.1,14.17]
[1641676930140,2.05479,3049.9,3049.5,1.6391078]
[1641676930340,0.05,3049.9,3049.8,1.63892513]
[1641676930540,0.05,3049.9,3049.8,2.21892513]
[1641676930741,0.05,3049.9,3049.8,2.88089513]
[1641676930942,0.05,3049.9,3049.8,1.24197]
[1641676932043,0.05,3049.9,3049.8,3.24676]
[1641676932242,0.05,3049.9,3049.8,0.66197]
[1641676934454,0.05,3049.9,3049.6,2.00479]
[1641676935847,0.05,3049.9,3049.5,0.66197]
[1641676935848,1.5,3049.7,3049.0,0.08197]
[1641676936051,2.00479,3049.3,3048.5,1.639648]
[1641676936248,2.00479,3049.3,3048.3,2.00479]
[1641676936249,2.00479,3049.3,3048.6,1.302757]
[1641676936447,0.661969,3049.2,3048.6,1.302757]
[1641676936647,0.661969,3049.2,3048.7,0.08198]
[1641676937048,0.05,3049.9,3048.8,0.66197]
[1641676937447,0.05,3049.9,3049.1,1.63930395]
[1641676937648,0.661969,3049.8,3048.7,0.08198]
[1641676937850,0.661969,3049.8,3049.1,1.63930933]
[1641676938048,0.661969,3049.8,3049.2,2.00479]
[1641676938547,0.661969,3049.8,3049.3,1.302757]
[1641676939049,0.661969,3049.8,3049.3,0.640787]
[1641676939250,0.661969,3049.8,3049.2,2.00479]
[1641676939449,1.5,3049.5,3048.7,1.63954585]
[1641676939650,0.661969,3049.4,3048.4,0.08197]
[1641676940050,2.00479,3049.2,3048.4,0.08197]
[1641676940251,0.661969,3049.1,3048.5,0.66197]
[1641676940652,0.661969,3049.1,3048.7,15.80953241]
[1641676940852,2.00479,3049.2,3048.8,0.66197]
[1641676941051,2.666759,3049.2,3048.8,0.66197]
[1641676941651,2.666759,3049.2,3048.7,0.08198]
[1641676941850,2.666759,3049.2,3048.6,0.640787]
[1641676942852,2.666759,3049.2,3048.5,1.63962649]
[1641676944057,2.666759,3049.2,3048.3,2.08677]
[1641676944354,2.666759,3049.2,3048.3,2.00479]
[1641676944554,2.666759,3049.2,3048.4,1.63968026]
[1641676944753,2.666759,3049.2,3048.5,1.302757]
[1641676945155,2.666759,3049.2,3048.5,15.472757]
[1641676945556,0.05,3049.9,3048.7,1.6395109]
[1641676945759,0.05,3049.9,3048.8,0.08197]
[1641676946161,0.05,3049.9,3049.0,2.00479]
[1641676947164,0.05,3049.9,3049.6,1.5]
[1641676947361,0.05,3049.9,3049.8,1.63886066]
[1641676947561,0.05,3049.9,3049.8,16.82093066]
[1641676947764,0.05,3049.9,3049.8,1.01207]
[1641676947965,0.05,3049.9,3049.8,0.9301]
[1641676948165,0.05,3049.9,3049.8,4.93968]
[1641676948966,0.05,3049.9,3049.8,6.57848963]
[1641676949370,0.05,3049.9,3049.8,4.93968]
[1641676949666,0.05,3049.9,3049.8,5.02165]
[1641676950167,2.00479,3050.8,3049.8,6.66052141]
[1641676950368,2.00479,3050.8,3049.8,4.93968]
[1641676951368,0.5,3049.9,3049.8,4.93968]
[1641676951570,0.5,3049.9,3049.8,5.60165]
[1641676951773,1.2174,3049.9,3049.4,0.08194]
[1641676951969,1.2174,3049.9,3049.4,0.66197]
[1641676952168,1.2174,3049.9,3049.4,3.307547]
[1641676952367,1.2174,3049.9,3049.1,2.00479]
[1641676952368,0.661969,3049.8,3048.5,0.08197]
[1641676952569,0.661969,3049.8,3048.5,1.63961574]
[1641676952968,0.661969,3049.8,3049.0,1.63936039]
[1641676953368,0.661969,3049.8,3049.1,0.66197]
[1641676954169,0.661969,3049.8,3049.2,0.640787]
[1641676954170,2.00479,3049.4,3049.2,0.640787]
[1641676954372,2.00479,3049.4,3049.2,1.302757]
[1641676954672,2.00479,3049.4,3049.2,0.66197]
[1641676954870,1.5,3049.3,3048.4,0.08197]
[1641676955074,2.00479,3049.4,3047.9,3.02245068]
[1641676955269,2.00479,3049.4,3047.9,1.38251765]
[1641676955469,2.00479,3049.4,3047.5,0.08198]
[1641676955470,1.5,3049.2,3048.0,1.63989269]
[1641676955670,1.5,3049.2,3047.5,1.46449765]
[1641676955870,1.5,3049.2,3047.7,1.64005675]
[1641676956072,2.00479,3047.8,3047.7,1.64005675]
[1641676956274,2.00479,3047.8,3047.7,0.66197]
[1641676956673,2.00479,3047.8,3047.7,2.30205633]
[1641676957875,2.00479,3048.1,3047.7,2.30205633]
[1641676958074,2.00479,3048.5,3047.8,2.00479]
[1641676958278,0.661969,3048.4,3047.8,2.00479]
[1641676958480,17.6802,3049.8,3048.4,14.17]
[1641676958675,3.13945177,3050.6,3048.5,0.08198]
[1641676958875,36.8256,3050.2,3048.5,0.95278]
[1641676959077,35.3256,3050.2,3048.5,0.95278]
[1641676959379,16.9777,3050.1,3048.5,15.12278]
[1641676959578,16.9777,3050.1,3048.8,1.6394894]
[1641676959775,16.9777,3050.1,3048.5,0.95278]
[1641676959976,16.9777,3050.1,3048.5,15.12278]
[1641676960176,2.00479,3049.8,3048.9,14.17]
[1641676960377,2.00479,3049.8,3049.2,14.17]
[1641676960579,0.661969,3049.7,3049.2,1.565157]
[1641676960780,0.661969,3049.7,3049.2,3.86637721]
[1641676961080,5.414,3051.7,3049.2,0.8424]
[1641676961280,17.1567,3050.8,3049.3,2.16197]
[1641676961481,17.5573,3050.9,3049.4,0.08197]
[1641676961684,17.5573,3050.9,3049.6,14.17]
[1641676961882,17.5573,3050.9,3049.7,0.08196]
[1641676962080,17.5573,3050.9,3050.6,2.00479]
[1641676962281,0.661969,3050.8,3050.6,2.68429]
[1641676962482,3.50479,3051.3,3050.6,2.68429]
[1641676962681,0.661969,3051.2,3050.6,2.68429]
[1641676962882,2.00479,3051.3,3050.7,0.640787]
[1641676963082,1.5,3051.7,3050.8,2.30036346]
[1641676963283,17.5408,3052.0,3050.8,2.30036346]
[1641676963482,1.5,3051.6,3050.8,2.30036346]
[1641676963683,0.661969,3051.5,3050.8,0.66197]
[1641676963883,1.5,3051.8,3050.8,0.66197]
[1641676964085,2.00479,3051.4,3050.6,2.00479]
[1641676964284,0.661969,3051.3,3050.7,0.66197]
[1641676964488,0.661969,3051.3,3050.6,2.00479]
[1641676964685,1.563269,3051.3,3049.8,0.08194]
[1641676964890,1.63916154,3051.1,3049.4,1.63916154]
[1641676965884,19.2508,3051.2,3049.9,1.63889558]
[1641676966086,2.00479,3050.6,3049.9,3.64368558]
[1641676966286,0.661969,3050.5,3050.0,0.66197]
[1641676966886,0.661969,3050.5,3050.0,1.302757]
[1641676967088,2.00479,3050.6,3050.0,1.302757]
[1641676967887,0.661969,3050.5,3050.0,0.66197]
[1641676968087,3.50479,3050.1,3049.2,0.08196]
[1641676968287,2.00479,3050.1,3048.7,1.38251765]
[1641676968487,1.5,3049.9,3049.0,1.63934157]
[1641676969387,2.00479,3050.1,3049.0,1.63934157]
[1641676969592,3.50479,3050.1,3049.0,1.63934157]
[1641676970189,2.00479,3049.3,3049.0,1.63934157]
[1641676970389,2.00479,3049.3,3049.0,2.30131157]
[1641676971390,2.00479,3049.3,3049.0,1.63934157]
[1641676971592,0.40063044,3049.3,3049.0,1.63934157]
[1641676971796,0.661969,3049.2,3048.3,2.08677]
[1641676971995,0.661969,3049.2,3048.3,2.00479]
[1641676972195,2.666759,3049.2,3048.3,2.00479]
[1641676972796,2.666759,3049.2,3048.6,1.63956197]
[1641676972996,2.666759,3049.2,3048.3,2.00479]
[1641676973396,2.00479,3049.2,3048.3,2.00479]
[1641676973600,2.00479,3049.2,3048.4,1.5]
[1641676973797,2.00479,3049.2,3048.5,1.302757]
[1641676973997,2.00479,3049.2,3048.6,1.63956197]
[1641676974199,0.661969,3049.1,3048.5,0.66197]
[1641676975800,0.6155,3049.3,3048.6,0.640787]
[1641676976099,0.6155,3049.3,3048.9,2.00479]
[1641676976500,0.6155,3049.3,3049.0,0.66197]
[1641676976902,0.661969,3049.4,3049.0,0.66197]
[1641676977100,0.661969,3049.4,3048.9,2.00479]
[1641676977304,0.661969,3049.4,3048.9,2.66676]
[1641676978201,0.661969,3049.4,3048.9,2.00479]
[1641676979001,0.661969,3049.4,3048.3,2.00479]
[1641676979808,0.661969,3049.4,3048.4,1.5]
[1641676980013,0.661969,3049.4,3048.5,14.25198]
[1641676980206,0.661969,3049.4,3048.9,2.00479]
[1641676980405,0.661969,3049.4,3049.0,1.302757]
[1641676980605,2.00479,3049.7,3049.0,1.302757]
[1641676981216,0.661969,3049.6,3049.0,1.302757]
[1641676981506,1.368669,3049.6,3048.5,0.52361647]
[1641676981706,1.368669,3049.6,3048.4,1.38251765]
[1641676982106,2.00479,3049.3,3048.7,1.5]
[1641676982310,2.00479,3049.3,3048.8,15.472757]
[1641676982511,2.00479,3049.3,3048.9,0.08198]
[1641676982708,2.00479,3049.3,3049.0,0.66197]
[1641676984410,2.00479,3049.3,3049.1,0.5236147]
[1641676985612,2.00479,3049.3,3049.0,0.66197]
[1641676985811,2.00479,3049.3,3048.9,1.63942758]
[1641676986111,1.5,3049.0,3048.4,3.02218447]
[1641676986314,1.5,3048.8,3048.4,3.02218447]
[1641676986512,0.661969,3048.7,3048.4,1.38251765]
[1641676987612,0.661969,3048.7,3048.2,2.31019739]
[1641676987813,0.661969,3048.7,3048.2,0.66197]
[1641676988113,0.661969,3048.7,3048.2,1.302757]
[1641676988313,2.00479,3048.6,3048.2,1.302757]
[1641676988913,2.00479,3049.0,3048.2,1.302757]
[1641676989114,0.661969,3048.7,3048.2,0.66197]
[1641676989414,1.510469,3048.7,3048.0,1.63991151]
[1641676990016,1.510469,3048.7,3047.9,2.00479]
[1641676990215,1.5,3048.0,3047.6,0.78016293]
[1641676990417,1.5,3047.7,3047.6,1.62489061]
[1641676990614,1.5,3047.7,3047.6,0.84479061]
[1641676990817,1.5,3047.7,3047.6,0.84279061]
[1641676991117,2.00479,3049.0,3047.6,2.34269061]
[1641676991416,0.6548,3048.8,3047.6,0.84279061]
[1641676991614,0.6548,3048.8,3047.5,1.6401778]
[1641676991816,0.6548,3048.8,3047.4,2.140687]
[1641676992015,9.99799999,3048.6,3047.3,2.70992881]
[1641676992215,2.00479,3047.4,3047.3,0.69824982]
[1641676992418,3.531059,3047.4,3046.7,2.52869333]
[1641676992616,3.531059,3047.4,3046.7,0.52390333]
[1641676993414,3.531059,3047.4,3046.0,0.78028982]
[1641676993616,3.531059,3047.4,3046.0,0.69824982]
[1641676994016,3.531059,3047.4,3045.9,2.19814982]
[1641676994216,2.00479,3046.3,3045.9,2.19814982]
[1641676994416,0.8556,3046.3,3046.2,1.4999]
[1641676994918,0.8556,3046.3,3046.2,2.16187]
[1641676995317,0.8556,3046.3,3046.2,3.80271792]
[1641676995517,36.4979,3048.0,3046.2,3.80271792]
[1641676995717,36.4979,3048.0,3047.1,1.4999]
[1641676995917,0.6924,3048.6,3047.1,1.4999]
[1641676996117,17.1375,3048.5,3047.1,1.4999]
[1641676996319,2.00479,3047.3,3047.1,1.4999]
[1641676996718,2.00479,3047.3,3047.0,0.66197]
[1641676996919,2.00479,3047.3,3047.2,1.4999]
[1641676997119,2.00479,3047.6,3047.2,2.74707]
[1641676997319,17.1375,3048.5,3047.5,1.4999]
[1641676997620,36.4729,3048.7,3048.1,1.4999]
[1641676997819,18.5675,3048.7,3048.1,3.02877]
[1641676998023,0.5,3049.1,3048.6,1.4999]
[1641676998220,0.5,3049.1,3049.0,1.4999]
[1641676998523,0.5,3049.1,3049.0,0.7506]
[1641676998719,0.5,3049.1,3049.0,2.2505]
[1641676999219,0.5,3049.1,3049.0,0.7506]
[1641676999520,0.5,3049.1,3049.0,2.2505]
[1641677000019,0.5,3049.1,3049.0,2.33248]
[1641677000224,0.5,3049.1,3049.0,3.97186189]
[1641677000418,0.5,3049.1,3049.0,2.33248]
[1641677000620,0.5,3049.1,3049.0,3.97177052]
[1641677001020,0.5,3049.1,3049.0,3.88979052]
[1641677001222,0.5,3049.1,3049.0,3.13919052]
[1641677001423,0.5,3049.1,3048.6,1.4999]
[1641677001621,1.4472,3049.1,3048.6,2.16187]
[1641677002023,1.4472,3049.1,3049.0,1.4999]
[1641677002220,0.9472,3049.1,3049.0,3.80110408]
[1641677002421,0.9472,3049.1,3049.0,2.16187]
[1641677002724,2.00479,3049.3,3049.0,2.16187]
[1641677002922,2.00479,3049.3,3049.0,2.30134382]
[1641677003122,2.00479,3049.3,3049.2,1.4999]
[1641677006028,2.00479,3049.6,3049.2,1.4999]
[1641677006231,2.00479,3049.6,3049.5,3.13883587]
[1641677006429,2.00479,3049.6,3049.5,3.77962287]
[1641677006628,2.00479,3050.2,3049.6,14.17]
[1641677006829,2.00479,3050.2,3050.1,1.4999]
[1641677007029,2.00479,3050.2,3050.1,2.4102]
[1641677007229,2.00479,3050.2,3050.1,3.07217]
[1641677007530,2.00479,3050.2,3050.1,4.71085073]
[1641677008430,2.00479,3050.7,3050.1,4.71085073]
[1641677008631,2.00479,3050.7,3050.2,0.640787]
[1641677008830,2.00479,3050.7,3050.6,1.4999]
[1641677009031,2.00479,3050.7,3050.2,0.722727]
[1641677009230,2.00479,3050.7,3050.5,1.4999]
[1641677009831,56.0476,3051.6,3050.5,1.4999]
[1641677010031,3.70912897,3052.3,3050.6,0.66197]
[1641677010231,2.00479,3051.3,3051.2,1.4999]
[1641677010533,2.00479,3051.3,3051.2,2.16187]
[1641677010831,2.00479,3051.3,3050.6,3.50469]
[1641677011033,2.00479,3051.3,3050.8,1.4999]
[1641677011731,2.666759,3051.3,3050.2,1.58184]
[1641677011934,3.571759,3051.3,3050.0,1.4999]
[1641677012130,3.571759,3051.3,3049.1,1.3496595]
[1641677012331,2.00479,3050.9,3050.2,2.00479]
[1641677012731,2.00479,3050.9,3050.3,0.640787]